Date,Purpose/Category (T),Department/Service (T),Amount Excl VAT,Beneficiary (T)
12/08/2022,Commuted Sum Expenditure,Enterprise,"60,000.00",65-68 Burton High Street Limited
09/09/2022,Contract Payments,Leisure Management,"4,333.38",A S Sports Systems Ltd
18/08/2022,Wasps Expenditure,Councillors Community Fund,"2,000.00",AB PCC Church and Church House Fabric Fund
20/07/2022,Consultants,Development Control,"1,295.00",ADC Infrastructure Limited
01/09/2022,Maintenance Contracts,Brewhouse Arts Centre,"1,639.99",ADT Fire and Security PLC
04/08/2022,"Fertilisers, Weedkiller and Insecticides",Street Cleaning,"1,548.90",Agrovista UK Ltd
05/09/2022,Accommodation Costs - B & B/Hotels,Housing Options - Accommodation,"1,530.00",AH Investment Solutions Limited
19/07/2022,Accommodation Costs - B & B/Hotels,Housing Options - Accommodation,945.00,AH Investment Solutions Limited
19/07/2022,Accommodation Costs - B & B/Hotels,Housing Options - Accommodation,810.00,AH Investment Solutions Limited
19/07/2022,Accommodation Costs - B & B/Hotels,Housing Options - Accommodation,"3,150.00",AH Investment Solutions Limited
19/07/2022,Accommodation Costs - B & B/Hotels,Next Steps Accommodation Programme (NSAP),"1,225.00",AH Investment Solutions Limited
19/07/2022,Accommodation Costs - B & B/Hotels,Next Steps Accommodation Programme (NSAP),540.00,AH Investment Solutions Limited
19/07/2022,Accommodation Costs - B & B/Hotels,Next Steps Accommodation Programme (NSAP),"1,215.00",AH Investment Solutions Limited
27/06/2022,DFG Contractor Payments,Housing Standards,"2,582.21",AKW Medi-Care Ltd
15/07/2022,DFG Contractor Payments,Housing Standards,"2,633.86",AKW Medi-Care Ltd
27/06/2022,DFG Contractor Payments,Housing Standards,"2,582.21",AKW Medi-Care Ltd
01/09/2022,Leased Car Costs,Heads of Service,"3,676.44",Alphabet (UK) Fleet Management Ltd
16/08/2022,Exhibitions/Events,Horticultural Resource Centre,625.81,Amberol Limited
24/06/2022,Professional Support,Stronger Towns Fund,"8,500.00",AMION Consulting Limited
15/08/2022,Professional Support,Stronger Towns Fund,"20,705.00",AMION Consulting Limited
31/08/2022,Professional Support,Stronger Towns Fund,"8,000.00",AMION Consulting Limited
07/09/2022,Professional Support,Stronger Towns Fund,"3,000.00",AMION Consulting Limited
09/09/2022,Public/Civic Function Expenses,Burton Town Hall Civic Building,849.30,An Individual
21/07/2022,Grounds Maintenance,Open Spaces,"3,600.00",An Individual
08/09/2022,Other Equipment,Open Spaces,"1,500.00",An Individual
13/07/2022,Ukraine Support Payments,Ukraine Payments,700.00,An Individual
30/06/2022,Ukraine Support Payments,Ukraine Payments,700.00,An Individual
05/08/2022,Ukraine Support Payments,Ukraine Payments,700.00,An Individual
06/07/2022,Other Expenses,Brewhouse Community Ticket Sales,"4,546.00",An Individual
26/07/2022,Flood Compensation Payments,Flood Compensation Payments,"5,000.00",An Individual
23/08/2022,Ukraine Support Payments,Ukraine Payments,"1,050.00",An Individual
20/09/2022,Ukraine Support Payments,Ukraine Payments,"1,050.00",An Individual
27/09/2022,Ukraine Support Payments,Ukraine Payments,733.87,An Individual
31/08/2022,Consultants,Management Local Outbreaks - SCC Grant Env Health (COVID-19),791.00,An Individual
15/08/2022,Consultants,Management Local Outbreaks - SCC Grant Env Health (COVID-19),"1,463.00",An Individual
21/09/2022,Consultants,Management Local Outbreaks - SCC Grant Env Health (COVID-19),714.00,An Individual
25/08/2022,Ukraine Support Payments,Ukraine Payments,"1,050.00",An Individual
17/08/2022,Ukraine Support Payments,Ukraine Payments,700.00,An Individual
26/07/2022,Flood Compensation Payments,Flood Compensation Payments,"4,758.08",An Individual
19/09/2022,Public/Civic Function Expenses,Burton Town Hall Civic Building,975.60,An Individual
06/07/2022,Temporary Staff Costs,Development Control,"1,183.50",An Individual
05/09/2022,Temporary Staff Costs,Development Control,"1,666.50",An Individual
02/08/2022,Temporary Staff Costs,Development Control,925.00,An Individual
26/07/2022,Flood Compensation Payments,Flood Compensation Payments,"5,000.00",An Individual
29/09/2022,Ukraine Support Payments,Ukraine Payments,"1,400.00",An Individual
05/07/2022,Ukraine Support Payments,Ukraine Payments,700.00,An Individual
20/09/2022,Ukraine Support Payments,Ukraine Payments,"1,050.00",An Individual
23/06/2022,Repairs & Maintenance to Buildings,Facilities Management,"1,350.00",An Individual
12/09/2022,Public/Civic Function Expenses,Burton Town Hall Civic Building,"1,087.40",An Individual
09/09/2022,Public/Civic Function Expenses,Burton Town Hall Civic Building,825.00,An Individual
23/06/2022,Professional Theatre Fees,Brewhouse Arts Centre,"3,000.00",An Individual
14/09/2022,DFG Contractor Payments,Housing Standards,"10,675.00",An Individual (GKC Property Renovations)
09/08/2022,DFG Contractor Payments,Housing Standards,"2,900.00",An Individual (GKC Property Renovations)
14/09/2022,DFG Contractor Payments,Housing Standards,"1,650.00",An Individual (GKC Property Renovations)
12/07/2022,DFG Contractor Payments,Housing Standards,"3,500.00",An Individual (GKC Property Renovations)
09/08/2022,DFG Contractor Payments,Housing Standards,"9,425.00",An Individual (GKC Property Renovations)
12/07/2022,DFG Contractor Payments,Housing Standards,"14,825.00",An Individual (GKC Property Renovations)
25/08/2022,Legal Costs,Development Control,"1,252.20",Anthony Collins Solicitors LLP
20/06/2022,Legal Costs,Legal Services,"1,804.80",Anthony Collins Solicitors LLP
19/06/2022,Arts Programme Expenses,Arts Development,"2,120.00",ARMH Reclamation
01/08/2022,Professional Support,Stronger Towns Fund,"4,760.00",bi Design Architecture Ltd
26/08/2022,Third Party Payments,Recycling,"4,466.88",Biffa Waste Services Limited
05/08/2022,Third Party Payments,Recycling,"5,577.12",Biffa Waste Services Limited
15/07/2022,Third Party Payments,Recycling,"6,098.76",Biffa Waste Services Limited
29/07/2022,Third Party Payments,Recycling,"5,594.94",Biffa Waste Services Limited
01/07/2022,Third Party Payments,Recycling,"6,205.14",Biffa Waste Services Limited
24/06/2022,Third Party Payments,Recycling,"7,149.60",Biffa Waste Services Limited
19/08/2022,Third Party Payments,Recycling,"4,629.96",Biffa Waste Services Limited
16/09/2022,Third Party Payments,Recycling,"5,111.10",Biffa Waste Services Limited
09/09/2022,Third Party Payments,Recycling,"5,249.88",Biffa Waste Services Limited
08/07/2022,Third Party Payments,Recycling,"5,856.84",Biffa Waste Services Limited
02/09/2022,Third Party Payments,Recycling,"5,496.12",Biffa Waste Services Limited
12/08/2022,Third Party Payments,Recycling,"5,854.68",Biffa Waste Services Limited
22/07/2022,Third Party Payments,Recycling,"3,812.40",Biffa Waste Services Limited
29/06/2022,Professional Fees,Enterprise,"4,486.25",Binnies UK Ltd
10/06/2022,Professional Fees,Enterprise,"3,108.75",Binnies UK Ltd
10/08/2022,Professional Fees,Enterprise,"5,457.50",Binnies UK Ltd
15/09/2022,Professional Fees,Enterprise,"12,898.75",Binnies UK Ltd
14/08/2022,Temporary Staff Costs,Development Control,533.40,Blue Arrow
21/08/2022,Temporary Staff Costs,Development Control,656.97,Blue Arrow
11/09/2022,Temporary Staff Costs,Development Control,655.02,Blue Arrow
28/08/2022,Temporary Staff Costs,Development Control,657.86,Blue Arrow
25/06/2022,Temporary Staff Costs,Burton Town Hall Civic Building,607.50,Boss Security
02/08/2022,Temporary Staff Costs,Burton Town Hall Civic Building,"1,642.50",Boss Security
07/06/2022,Contracted Grounds Maintenance,Horticultural Resource Centre,"39,135.68",Boverton Nurseries Ltd
07/08/2022,Consultants,Development Control,691.65,Bramley Tree Consultancy Ltd
01/07/2022,Consultants,Development Control,655.95,Bramley Tree Consultancy Ltd
20/07/2022,DFG Contractor Payments,Housing Standards,"13,160.00",Broad Oak Properties Limited
20/05/2022,DFG Contractor Payments,Housing Standards,"3,000.00",Broad Oak Properties Limited
26/05/2022,DFG Contractor Payments,Housing Standards,"8,260.00",Broad Oak Properties Limited
20/05/2022,DFG Contractor Payments,Housing Standards,"1,242.20",Broad Oak Properties Limited
14/06/2022,DFG Contractor Payments,Housing Standards,"4,290.00",Broad Oak Properties Limited
26/07/2022,DFG Contractor Payments,Housing Standards,600.00,Broad Oak Properties Limited
08/07/2022,DFG Contractor Payments,Housing Standards,"7,820.00",Broad Oak Properties Limited
08/09/2022,DFG Contractor Payments,Housing Standards,"7,875.00",Broad Oak Properties Limited
29/06/2022,DFG Contractor Payments,Housing Standards,"4,145.00",Broad Oak Properties Limited
02/08/2022,DFG Contractor Payments,Housing Standards,"6,747.50",Broad Oak Properties Limited
08/07/2022,DFG Contractor Payments,Housing Standards,"1,000.00",Broad Oak Properties Limited
26/05/2022,DFG Contractor Payments,Housing Standards,"5,972.50",Broad Oak Properties Limited
26/05/2022,DFG Contractor Payments,Housing Standards,"1,652.00",Broad Oak Properties Limited
28/06/2022,DFG Contractor Payments,Housing Standards,"5,697.50",Broad Oak Properties Limited
28/06/2022,DFG Contractor Payments,Housing Standards,"5,282.50",Broad Oak Properties Limited
28/06/2022,DFG Contractor Payments,Housing Standards,"2,400.00",Broad Oak Properties Limited
28/06/2022,DFG Contractor Payments,Housing Standards,800.00,Broad Oak Properties Limited
14/06/2022,DFG Contractor Payments,Housing Standards,800.00,Broad Oak Properties Limited
20/05/2022,DFG Contractor Payments,Housing Standards,"6,211.00",Broad Oak Properties Limited
13/09/2022,Repairs and Maintenance of Car Park Ticket Machines,Car Parks - General,"1,782.00",Brown Advertising and Design
13/09/2022,Repairs and Maintenance of Car Park Ticket Machines,Car Parks - General,996.80,Brown Advertising and Design
26/08/2022,Legal Costs,Stronger Towns Fund,698.40,Browne Jacobson LLP
29/06/2022,Growth Point Work,Stronger Towns Fund,854.70,Browne Jacobson LLP
08/09/2022,Grounds Maintenance,Open Spaces,659.00,Broxap Limited
24/05/2022,Acquisition of Vehicles,Millers Lane Depot,"137,263.00",Bucher Municipal Ltd
22/08/2022,Refuse Removal,Refuse Collection,"1,625.00",Burton Environmental Services Ltd
20/06/2022,Commuted Sum Expenditure,Housing Options,"11,111.25",Burton upon Trent & District YMCA
20/06/2022,Commuted Sum Expenditure,Housing Options,"6,666.75",Burton upon Trent & District YMCA
20/06/2022,General Grants,Housing Options,"15,333.33",Burton upon Trent & District YMCA
20/06/2022,General Grants,Housing Options,"21,500.00",Burton upon Trent & District YMCA
18/08/2022,Other Expenses,Mayors Fund,"3,189.64",Burton upon Trent & District YMCA
17/08/2022,Other Expenses,Mayors Fund,"3,189.64",Cancer Research UK
09/08/2022,Arts Programme Expenses,Arts Development,574.46,Cannock Sound Hire Ltd
07/09/2022,Hire of Equipment,Central Reprographics,517.96,Canon UK Ltd
05/07/2022,Hire of Equipment,Central Reprographics,553.89,Canon UK Ltd
04/08/2022,Hire of Equipment,Central Reprographics,583.03,Canon UK Ltd
16/08/2022,Software Licenses & Contracts,Business Rate Collection,"2,227.00",Capita Business Services Ltd
22/06/2022,Consultants,Council Tax Collection,"1,950.00",Capita Business Services Ltd
05/07/2022,Arts Worker Fees,Brewhouse Arts Centre,640.00,Central Travel (Woodville) Ltd t/a Bagnalls Coaches
30/08/2022,Market Research,Burton Retail Market,645.00,Central Travel (Woodville) Ltd t/a Bagnalls Coaches
03/08/2022,Training Expenses,Corporate Training,650.00,Centre for Governance and Scrutiny (CFGS)
25/07/2022,Christmas Decorations,Grants for Tourism,"7,490.00",Christmas Plus
21/09/2022,Printing and Stationery,Electoral Services,"7,653.76",Civica Election Services Limited
06/06/2022,Contract Payments,Millers Lane Depot,"7,664.00",Cleaner EV Ltd
26/07/2022,General Grants,Enterprise,"2,500.00",Clide Limited
25/08/2022,DFG Contractor Payments,Housing Standards,"3,347.40",Close Circuit Security Services Ltd
28/07/2022,Professional Theatre Fees,Brewhouse Arts Centre,800.00,Comedy Club 4 Kids
21/08/2022,Temporary Staff Costs,Recycling,"2,962.06",Comensura Ltd
28/08/2022,Temporary Staff Costs,Recycling,"3,181.32",Comensura Ltd
10/08/2022,Temporary Staff Costs,Recycling,"3,747.57",Comensura Ltd
31/07/2022,Temporary Staff Costs,Recycling,"4,472.98",Comensura Ltd
29/06/2022,Temporary Staff Costs,Recycling,"3,890.51",Comensura Ltd
07/09/2022,Temporary Staff Costs,Recycling,"6,528.26",Comensura Ltd
17/08/2022,Temporary Staff Costs,Recycling,"3,876.20",Comensura Ltd
06/07/2022,Temporary Staff Costs,Recycling,"4,268.96",Comensura Ltd
14/09/2022,Temporary Staff Costs,Recycling,"4,694.70",Comensura Ltd
20/07/2022,Temporary Staff Costs,Recycling,"2,731.18",Comensura Ltd
27/07/2022,Temporary Staff Costs,Recycling,"4,877.37",Comensura Ltd
10/07/2022,Temporary Staff Costs,Recycling,"4,318.76",Comensura Ltd
27/07/2022,Temporary Staff Costs,Refuse Collection,"3,261.76",Comensura Ltd
21/08/2022,Temporary Staff Costs,Refuse Collection,"4,544.50",Comensura Ltd
29/06/2022,Temporary Staff Costs,Refuse Collection,"6,299.84",Comensura Ltd
10/08/2022,Temporary Staff Costs,Refuse Collection,"6,005.55",Comensura Ltd
31/07/2022,Temporary Staff Costs,Refuse Collection,"5,338.18",Comensura Ltd
07/09/2022,Temporary Staff Costs,Refuse Collection,"6,779.15",Comensura Ltd
28/08/2022,Temporary Staff Costs,Refuse Collection,"5,356.45",Comensura Ltd
10/07/2022,Temporary Staff Costs,Refuse Collection,"4,961.29",Comensura Ltd
14/09/2022,Temporary Staff Costs,Refuse Collection,"4,222.15",Comensura Ltd
17/08/2022,Temporary Staff Costs,Refuse Collection,"5,944.71",Comensura Ltd
20/07/2022,Temporary Staff Costs,Refuse Collection,"5,671.42",Comensura Ltd
06/07/2022,Temporary Staff Costs,Refuse Collection,"5,605.97",Comensura Ltd
06/07/2022,Temporary Staff Costs,Street Cleaning,"2,321.28",Comensura Ltd
10/08/2022,Temporary Staff Costs,Street Cleaning,"2,756.39",Comensura Ltd
20/07/2022,Temporary Staff Costs,Street Cleaning,"2,321.28",Comensura Ltd
29/06/2022,Temporary Staff Costs,Street Cleaning,"1,930.77",Comensura Ltd
07/09/2022,Temporary Staff Costs,Street Cleaning,"3,609.72",Comensura Ltd
17/08/2022,Temporary Staff Costs,Street Cleaning,"2,062.73",Comensura Ltd
28/08/2022,Temporary Staff Costs,Street Cleaning,"2,321.63",Comensura Ltd
10/07/2022,Temporary Staff Costs,Street Cleaning,"2,224.56",Comensura Ltd
14/09/2022,Temporary Staff Costs,Street Cleaning,"3,122.58",Comensura Ltd
31/07/2022,Temporary Staff Costs,Street Cleaning,"2,959.39",Comensura Ltd
21/08/2022,Temporary Staff Costs,Street Cleaning,"1,934.61",Comensura Ltd
27/07/2022,Temporary Staff Costs,Street Cleaning,"2,340.00",Comensura Ltd
27/07/2022,Consultants,Environmental Health,877.80,Community Resourcing Limited
16/06/2022,Consultants,Legal Services,"1,575.00",Cornerstone Barristers
27/06/2022,Consultants,Legal Services,"1,585.00",Cornerstone Barristers
16/09/2022,Arts Programme Expenses,Arts Development,"3,652.00",Courtyard Events
05/07/2022,Consultants,Development Control,"2,250.00",CP Viability Ltd
22/08/2022,Consultants,Development Control,"2,100.00",CP Viability Ltd
20/07/2022,Provision of Wheelie Bins,Recycling,"1,040.00",Craemer UK Limited
17/08/2022,Provision of Wheelie Bins,Refuse Collection,"16,302.00",Craemer UK Limited
01/06/2022,Contract Payments,Millers Lane Depot,945.00,Curv360 Limited
09/09/2022,Grounds Maintenance,Open Spaces,775.00,D Mccarthy Bros (Lichfield) Ltd
24/06/2022,Grounds Maintenance,Open Spaces,"2,800.00",D Mccarthy Bros (Lichfield) Ltd
20/07/2022,Terms Maintenance,Open Spaces,"14,100.00",D Mccarthy Bros (Lichfield) Ltd
09/09/2022,Repairs & Maintenance to Buildings,Cemeteries,"1,810.00",D S K Engineering Services
09/09/2022,Repairs & Maintenance to Buildings,Cemeteries,826.00,D S K Engineering Services
09/07/2022,Grounds Maintenance,Open Spaces,"2,600.00",D S K Engineering Services
13/08/2022,Grounds Maintenance,Open Spaces,"2,051.00",D S K Engineering Services
23/06/2022,Grounds Maintenance,Open Spaces,811.00,D S K Engineering Services
08/07/2022,Grounds Maintenance,Open Spaces,"1,100.00",D S K Engineering Services
09/07/2022,Grounds Maintenance,Open Spaces,"2,325.00",D S K Engineering Services
16/07/2022,Grounds Maintenance,Open Spaces,"2,490.00",D S K Engineering Services
16/07/2022,Grounds Maintenance,Open Spaces,907.00,D S K Engineering Services
08/07/2022,Grounds Maintenance,Open Spaces,580.00,D S K Engineering Services
08/07/2022,Grounds Maintenance,Open Spaces,825.00,D S K Engineering Services
23/06/2022,Grounds Maintenance,Open Spaces,"3,835.00",D S K Engineering Services
23/06/2022,Grounds Maintenance,Open Spaces,"2,040.00",D S K Engineering Services
09/09/2022,Grounds Maintenance,Open Spaces,"1,099.00",D S K Engineering Services
09/09/2022,Grounds Maintenance,Open Spaces,"6,490.00",D S K Engineering Services
13/08/2022,Grounds Maintenance,Open Spaces,"3,560.00",D S K Engineering Services
09/09/2022,Grounds Maintenance,Open Spaces,"3,995.00",D S K Engineering Services
09/09/2022,Grounds Maintenance,Open Spaces,"2,170.00",D S K Engineering Services
16/07/2022,Grounds Maintenance,Open Spaces,"12,130.00",D S K Engineering Services
16/07/2022,Grounds Maintenance,Open Spaces,"5,712.00",D S K Engineering Services
23/06/2022,Grounds Maintenance,Open Spaces,"5,025.00",D S K Engineering Services
08/07/2022,Grounds Maintenance,Open Spaces,"1,300.00",D S K Engineering Services
13/08/2022,Play Equipment,Open Spaces,"1,672.00",D S K Engineering Services
23/06/2022,Play Equipment,Open Spaces,568.00,D S K Engineering Services
09/09/2022,Play Equipment,Open Spaces,"4,470.00",D S K Engineering Services
16/07/2022,Play Equipment,Open Spaces,"1,374.00",D S K Engineering Services
23/06/2022,Play Equipment,Open Spaces,"1,530.00",D S K Engineering Services
13/08/2022,Play Equipment,Open Spaces,572.00,D S K Engineering Services
09/09/2022,Play Equipment,Open Spaces,"2,860.00",D S K Engineering Services
09/09/2022,Play Equipment,Open Spaces,825.00,D S K Engineering Services
23/06/2022,Play Equipment,Open Spaces,700.00,D S K Engineering Services
16/07/2022,Play Equipment,Open Spaces,"3,660.00",D S K Engineering Services
09/09/2022,Play Equipment,Open Spaces,"1,563.00",D S K Engineering Services
01/03/2022,System Maintenance,Electoral Services,"15,000.00",Democracy Counts Ltd
31/07/2022,Printing and Stationery,Electoral Services,"2,192.56",Democracy Counts Ltd
26/05/2022,Vehicle Maintenance Costs,Refuse Collection,"6,390.00",Dennis Eagle Ltd
22/07/2022,Dangerous Structures,Building Consultancy Chargeable Activities,810.00,Derbyshire Building Control Partnership
05/07/2022,DFG Contractor Payments,Housing Standards,"2,735.00",Direct Healthcare Group
23/08/2022,Repairs & Maintenance to Buildings,Facilities Management,"1,108.00",Door Maintenance Specialists (S-o-T) Ltd.
23/08/2022,Repairs & Maintenance to Buildings,Facilities Management,"1,342.00",Door Maintenance Specialists (S-o-T) Ltd.
14/06/2022,System Maintenance,ICT,"1,440.00",Dotted Eyes Ltd
20/05/2022,Car Parks Maintenance,Open Spaces,"40,142.28",E.on Energy Solutions Ltd
08/08/2022,Electricity,Millers Lane Depot,524.49,E.ON Next Energy Limited
06/09/2022,Electricity,Millers Lane Depot,586.21,E.ON Next Energy Limited
06/07/2022,Electricity,Millers Lane Depot,518.66,E.ON Next Energy Limited
06/07/2022,Electricity,Open Spaces,"1,114.95",E.ON Next Energy Limited
19/01/2022,Supply/Repair Trade Refuse Bins,Refuse Collection,"1,300.00",Egbert H Taylor & Co Ltd
19/01/2022,Supply/Repair Trade Refuse Bins,Refuse Collection,945.00,Egbert H Taylor & Co Ltd
21/06/2022,Terms Maintenance,Open Spaces,"2,887.00",Elite Roofing & Cladding Ltd
20/07/2022,Terms Maintenance,Open Spaces,"1,836.00",Elite Roofing & Cladding Ltd
30/06/2022,Security of Premises,Facilities Management,"1,000.00",EMS Security Services Ltd
01/08/2022,Subscriptions,Environmental Health,"1,623.00",Envitech Europe Ltd
16/08/2022,Miscellaneous Licenses,Brewhouse Arts Centre,"1,202.08",EPOS Group
07/07/2022,Overs and Shorts,Income Management,962.28,Estate Administration Service
16/09/2022,Subscriptions,Environmental Health,"2,098.00",ESU1 Limited
25/07/2022,Professional Theatre Fees,Brewhouse Arts Centre,"8,786.70",Fiery Light Giant Ltd
18/07/2022,Vehicle Maintenance Costs,Community and Civil Enforcement,507.97,Filmers Garage Limited
15/07/2022,Vehicle Maintenance Costs,Community and Civil Enforcement,507.97,Filmers Garage Limited
13/07/2022,Vehicle Maintenance Costs,Street Cleaning,530.47,Filmers Garage Limited
05/08/2022,Direct Purchases,DSO Stores Account,"11,320.53",Fireflux Ltd
23/09/2022,Arts Programme Expenses,Arts Development,725.00,Fool�s Paradise Ltd
03/09/2022,Arts Programme Expenses,Arts Development,885.00,Fool�s Paradise Ltd
03/09/2022,Other Equipment,Arts Development,"4,410.00",Fool�s Paradise Ltd
31/07/2022,System Maintenance,Human Resources,"1,295.00",Frontier Software PLC
27/06/2022,System Maintenance,Human Resources,636.00,Frontier Software PLC
31/07/2022,Training Expenses,Corporate Training,"1,990.00",Frontier Software PLC
09/08/2022,Other Equipment,Burton Retail Market,500.00,Funtastic Entertainments
05/08/2022,Repairs & Maintenance to Buildings,Brewhouse Arts Centre,598.99,GEZE UK Ltd
06/09/2022,Consultants,Development Control,"6,095.00",GHM Planning Ltd
04/08/2022,Consultants,Development Control,"5,835.00",GHM Planning Ltd
09/09/2022,Consultants,Development Control,"7,130.00",GHM Planning Ltd
05/04/2022,Street Scene,Street Cleaning,"5,827.20",Glasdon UK Limited
31/08/2022,Other Equipment,Arts Development,"1,716.00",Global Media & Entertainment Limited
31/07/2022,Vehicle Hire,Street Cleaning,829.25,Go Plant Fleet Services Ltd
31/08/2022,Vehicle Hire,Street Cleaning,"1,656.23",Go Plant Fleet Services Ltd
31/07/2022,Vehicle Hire,Street Cleaning,"2,702.27",Go Plant Fleet Services Ltd
30/06/2022,Vehicle Hire,Street Cleaning,"2,615.10",Go Plant Fleet Services Ltd
30/06/2022,Vehicle Hire,Street Cleaning,802.50,Go Plant Fleet Services Ltd
30/07/2022,Vehicle Hire,Street Cleaning,802.50,Go Plant Fleet Services Ltd
03/08/2022,Commuted Sum Expenditure,Housing Options,"5,000.00",Grafton Research Services Ltd
03/09/2022,Arts Programme Expenses,Arts Development,870.00,Granny Turismo
24/06/2022,External Audit Fees,External Audit,"10,153.00",Grant Thornton UK LLP
30/05/2022,Play Equipment,Open Spaces,651.88,HAGS SMP Ltd
01/08/2022,DFG Contractor Payments,Housing Standards,"1,710.00",Handicare Accessibility Ltd
29/07/2022,DFG Contractor Payments,Housing Standards,"5,565.00",Handicare Accessibility Ltd
23/08/2022,Signs,Brook Hollows Project,"1,490.00",Hardy Signs Ltd
11/07/2022,Advertising,Cultural Services Marketing,"1,055.00",Hardy Signs Ltd
23/08/2022,Arts Programme Expenses,Arts Development,"1,069.70",Hardy Signs Ltd
12/05/2022,Dangerous Structures,Building Consultancy Chargeable Activities,576.00,Harvey & Clark Ltd
07/09/2022,DFG Contractor Payments,Housing Standards,"3,215.55",Harvey & Clark Ltd
23/06/2022,DFG Contractor Payments,Housing Standards,"10,556.45",Harvey & Clark Ltd
23/06/2022,DFG Contractor Payments,Housing Standards,948.90,Harvey & Clark Ltd
09/09/2022,DFG Contractor Payments,Housing Standards,"18,481.10",Harvey & Clark Ltd
23/06/2022,DFG Contractor Payments,Housing Standards,"4,744.50",Harvey & Clark Ltd
13/07/2022,DFG Contractor Payments,Housing Standards,"5,253.25",Harvey & Clark Ltd
12/07/2022,DFG Contractor Payments,Housing Standards,"5,803.35",Harvey & Clark Ltd
09/09/2022,DFG Contractor Payments,Housing Standards,"1,505.15",Harvey & Clark Ltd
13/07/2022,DFG Contractor Payments,Housing Standards,"8,325.20",Harvey & Clark Ltd
13/07/2022,DFG Contractor Payments,Housing Standards,"1,050.65",Harvey & Clark Ltd
12/07/2022,DFG Contractor Payments,Housing Standards,"1,942.30",Harvey & Clark Ltd
07/09/2022,DFG Contractor Payments,Housing Standards,"10,963.44",Harvey & Clark Ltd
07/09/2022,DFG Contractor Payments,Housing Standards,643.11,Harvey & Clark Ltd
31/08/2022,Tourist Information Signs,Tourism Development,"2,790.00",Haywyre LLP
17/06/2022,General Grants,Enterprise,"10,000.00",HFE Signs Ltd
15/09/2022,Storage Costs,Housing Options,500.00,Holloway and Sons
15/09/2022,Repairs & Maintenance to Buildings,Housing Options - Accommodation,"3,250.00",Holloway and Sons
25/08/2022,Contracted Grounds Maintenance,Cemeteries,"12,399.25",Idverde Limited
21/07/2022,Contracted Grounds Maintenance,Cemeteries,"3,266.37",Idverde Limited
29/06/2022,Contracted Grounds Maintenance,Cemeteries,"12,829.44",Idverde Limited
21/07/2022,Contracted Grounds Maintenance,Cemeteries,"13,655.66",Idverde Limited
21/07/2022,Contracted Grounds Maintenance,Cemeteries,"4,088.23",Idverde Limited
27/07/2022,Grounds Maintenance,Land Drainage,594.80,Idverde Limited
27/07/2022,Grounds Maintenance,Land Drainage,594.80,Idverde Limited
06/09/2022,Grounds Maintenance,Land Drainage,"4,856.90",Idverde Limited
27/07/2022,Grounds Maintenance,Land Drainage,594.80,Idverde Limited
27/07/2022,Grounds Maintenance,Land Drainage,594.80,Idverde Limited
27/07/2022,Grounds Maintenance,Land Drainage,594.80,Idverde Limited
27/07/2022,Grounds Maintenance,Land Drainage,"2,503.80",Idverde Limited
27/07/2022,Grounds Maintenance,Land Drainage,594.80,Idverde Limited
27/07/2022,Grounds Maintenance,Land Drainage,"2,016.95",Idverde Limited
27/07/2022,Grounds Maintenance,Land Drainage,594.80,Idverde Limited
27/07/2022,Grounds Maintenance,Land Drainage,594.80,Idverde Limited
21/07/2022,Car Parks Maintenance,Open Spaces,540.72,Idverde Limited
27/07/2022,Car Parks Maintenance,Open Spaces,788.55,Idverde Limited
27/07/2022,Car Parks Maintenance,Open Spaces,788.55,Idverde Limited
27/07/2022,Car Parks Maintenance,Open Spaces,788.55,Idverde Limited
27/07/2022,Car Parks Maintenance,Open Spaces,788.55,Idverde Limited
21/07/2022,Car Parks Maintenance,Open Spaces,"2,353.92",Idverde Limited
27/07/2022,Car Parks Maintenance,Open Spaces,788.55,Idverde Limited
27/07/2022,Car Parks Maintenance,Open Spaces,788.55,Idverde Limited
25/08/2022,Car Parks Maintenance,Open Spaces,788.55,Idverde Limited
21/07/2022,Contracted Grounds Maintenance,Open Spaces,"7,328.27",Idverde Limited
25/08/2022,Contracted Grounds Maintenance,Open Spaces,"8,722.27",Idverde Limited
25/08/2022,Contracted Grounds Maintenance,Open Spaces,"10,914.46",Idverde Limited
21/07/2022,Contracted Grounds Maintenance,Open Spaces,"3,433.76",Idverde Limited
21/07/2022,Contracted Grounds Maintenance,Open Spaces,"56,423.80",Idverde Limited
21/07/2022,Contracted Grounds Maintenance,Open Spaces,"4,182.19",Idverde Limited
21/07/2022,Contracted Grounds Maintenance,Open Spaces,"4,113.58",Idverde Limited
25/08/2022,Contracted Grounds Maintenance,Open Spaces,"4,783.49",Idverde Limited
21/07/2022,Contracted Grounds Maintenance,Open Spaces,"6,686.18",Idverde Limited
29/06/2022,Contracted Grounds Maintenance,Open Spaces,"66,891.24",Idverde Limited
12/09/2022,Contracted Grounds Maintenance,Open Spaces,"86,886.52",Idverde Limited
21/07/2022,Contracted Grounds Maintenance,Open Spaces,"1,321.02",Idverde Limited
25/08/2022,Contracted Grounds Maintenance,Open Spaces,"66,186.50",Idverde Limited
21/07/2022,Contracted Grounds Maintenance,Open Spaces,"9,031.45",Idverde Limited
11/08/2022,Maintenance Contracts,Facilities Management,"1,260.00",Impact Environmental Pest Prevention Ltd
22/07/2022,Training Expenses,Corporate Training,"1,000.00",Improvement & Development Agency for Local Government
07/07/2022,Grounds Maintenance,Open Spaces,"2,950.00",Independent Memorial Inspection
07/07/2022,Grounds Maintenance,Open Spaces,"2,000.00",Independent Memorial Inspection
25/04/2022,Grounds Maintenance,Open Spaces,"4,240.00",Independent Memorial Inspection
17/08/2022,Grounds Maintenance,Open Spaces,"1,900.00",Independent Memorial Inspection
18/07/2022,Members Expenses - Information Commissioner,Members Allowances & Expenses,"2,900.00",Information Commissioner
25/07/2022,Other Equipment,Development Control,"1,327.92",Insight Direct (UK) Limited
11/07/2022,Other Equipment,Environmental Health,597.00,Insight Direct (UK) Limited
28/07/2022,Other Equipment,Environmental Health,"1,256.24",Insight Direct (UK) Limited
12/09/2022,Other Equipment,Legal Services,625.00,Insight Direct (UK) Limited
20/08/2022,ICT Departmental Purchases,ICT,719.85,Insight Direct (UK) Limited
06/07/2022,ICT Departmental Purchases,ICT,"13,281.00",Insight Direct (UK) Limited
25/07/2022,ICT Departmental Purchases,ICT,"4,979.70",Insight Direct (UK) Limited
07/06/2022,Other Equipment,ICT,"1,109.70",Insight Direct (UK) Limited
01/08/2022,Other Expenses,Brewhouse Community Ticket Sales,"1,372.50",Inspiration School of Dance
21/06/2022,Training Expenses,Corporate Training,578.00,Institute of Licensing Ltd
01/09/2022,Rents,Open Spaces,"2,500.00",J T Leavesley Limited
14/07/2022,"Seeds, Plants and Shrubs",Horticultural Resource Centre,971.40,James Coles & Sons (Nurseries)
06/08/2022,Accommodation Costs - B & B/Hotels,Housing Options - Accommodation,775.00,Johnsons Accomodation Ltd
07/07/2022,Accommodation Costs - B & B/Hotels,Housing Options - Accommodation,750.00,Johnsons Accomodation Ltd
09/06/2022,Accommodation Costs - B & B/Hotels,Next Steps Accommodation Programme (NSAP),650.00,Johnsons Accomodation Ltd
06/08/2022,Accommodation Costs - B & B/Hotels,Next Steps Accommodation Programme (NSAP),"1,085.00",Johnsons Accomodation Ltd
07/07/2022,Accommodation Costs - B & B/Hotels,Next Steps Accommodation Programme (NSAP),"1,050.00",Johnsons Accomodation Ltd
03/09/2022,Accommodation Costs - B & B/Hotels,Next Steps Accommodation Programme (NSAP),650.00,Johnsons Accomodation Ltd
07/07/2022,Accommodation Costs - B & B/Hotels,Next Steps Accommodation Programme (NSAP),750.00,Johnsons Accomodation Ltd
12/07/2022,Accommodation Costs - B & B/Hotels,Next Steps Accommodation Programme (NSAP),750.00,Johnsons Accomodation Ltd
08/09/2022,Accommodation Costs - B & B/Hotels,Next Steps Accommodation Programme (NSAP),725.00,Johnsons Accomodation Ltd
01/08/2022,Accommodation Costs - B & B/Hotels,Next Steps Accommodation Programme (NSAP),750.00,Johnsons Accomodation Ltd
09/06/2022,Accommodation Costs - B & B/Hotels,Next Steps Accommodation Programme (NSAP),"1,085.00",Johnsons Accomodation Ltd
14/06/2022,Accommodation Costs - B & B/Hotels,Next Steps Accommodation Programme (NSAP),775.00,Johnsons Accomodation Ltd
14/09/2022,Accommodation Costs - B & B/Hotels,Next Steps Accommodation Programme (NSAP),550.00,Johnsons Accomodation Ltd
08/09/2022,Accommodation Costs - B & B/Hotels,Next Steps Accommodation Programme (NSAP),"1,085.00",Johnsons Accomodation Ltd
26/08/2022,Accommodation Costs - B & B/Hotels,Next Steps Accommodation Programme (NSAP),525.00,Johnsons Accomodation Ltd
04/08/2022,Grounds Maintenance,Community and Civil Enforcement,"5,828.00",JRB Enterprise Ltd
28/06/2022,Professional Theatre Fees,Brewhouse Arts Centre,928.96,Just The Tonic Productions Ltd
10/07/2022,Professional Theatre Fees,Brewhouse Arts Centre,545.00,Just The Tonic Productions Ltd
10/07/2022,Professional Theatre Fees,Brewhouse Arts Centre,561.67,Just The Tonic Productions Ltd
10/07/2022,Professional Theatre Fees,Brewhouse Arts Centre,691.67,Just The Tonic Productions Ltd
10/07/2022,Professional Theatre Fees,Brewhouse Arts Centre,626.67,Just The Tonic Productions Ltd
09/09/2022,Consultants,Development Control,900.00,Kernon Countryside Consultants Ltd
16/09/2022,Training Expenses,Corporate Training,525.00,Killgerm Chemicals
25/08/2022,Legal Costs,Legal Services,950.00,Kings Chambers
25/08/2022,Legal Costs,Legal Services,750.00,Kings Chambers
27/07/2022,Legal Costs,Legal Services,"1,500.00",Kings Chambers
25/08/2022,Rents,Coopers Square Car Park - Surface,"3,000.00",Knight Frank LLP
26/08/2022,Books and Publications,Legal Services,547.00,Lexis Nexis Butterworths
14/09/2021,Contributions to Other Bodies,Arts Grant Aid Scheme,"4,000.00",Live & Local Ltd
31/08/2022,Direct Purchases,Millers Lane Depot,651.82,Lyreco UK Ltd
30/06/2022,Printing and Stationery,Enforcement Section,561.49,Lyreco UK Ltd
31/07/2022,Printing and Stationery,Licensing,546.52,Lyreco UK Ltd
31/07/2022,Printing and Stationery,Central Reprographics,588.41,Lyreco UK Ltd
30/06/2022,Cleaning & Domestic Equipment,Facilities Management,555.25,Lyreco UK Ltd
26/07/2022,Repairs & Maintenance to Buildings,Burton Town Hall Civic Building,"1,690.00",M.C. Thompson Organ Builders Ltd
31/07/2022,Temporary Staff Costs,Financial Management Unit,"2,452.66",Macildowie Associates Ltd
12/06/2022,Temporary Staff Costs,Financial Management Unit,"2,452.66",Macildowie Associates Ltd
26/06/2022,Temporary Staff Costs,Financial Management Unit,996.80,Macildowie Associates Ltd
10/07/2022,Temporary Staff Costs,Financial Management Unit,747.35,Macildowie Associates Ltd
04/09/2022,Temporary Staff Costs,Financial Management Unit,"1,962.40",Macildowie Associates Ltd
14/08/2022,Temporary Staff Costs,Financial Management Unit,"2,452.66",Macildowie Associates Ltd
03/07/2022,Temporary Staff Costs,Financial Management Unit,996.80,Macildowie Associates Ltd
17/07/2022,Temporary Staff Costs,Financial Management Unit,"2,452.66",Macildowie Associates Ltd
10/07/2022,Temporary Staff Costs,Financial Management Unit,"2,452.66",Macildowie Associates Ltd
26/06/2022,Temporary Staff Costs,Financial Management Unit,"2,452.66",Macildowie Associates Ltd
05/06/2022,Temporary Staff Costs,Financial Management Unit,"1,434.04",Macildowie Associates Ltd
24/07/2022,Temporary Staff Costs,Financial Management Unit,"2,452.66",Macildowie Associates Ltd
28/08/2022,Temporary Staff Costs,Financial Management Unit,"2,452.66",Macildowie Associates Ltd
18/09/2022,Temporary Staff Costs,Financial Management Unit,"2,452.66",Macildowie Associates Ltd
11/09/2022,Temporary Staff Costs,Financial Management Unit,"2,452.66",Macildowie Associates Ltd
29/05/2022,Temporary Staff Costs,Financial Management Unit,"2,389.01",Macildowie Associates Ltd
19/06/2022,Temporary Staff Costs,Financial Management Unit,"2,452.66",Macildowie Associates Ltd
07/08/2022,Temporary Staff Costs,Financial Management Unit,"2,452.66",Macildowie Associates Ltd
21/08/2022,Temporary Staff Costs,Financial Management Unit,"2,452.66",Macildowie Associates Ltd
03/07/2022,Temporary Staff Costs,Financial Management Unit,"2,452.66",Macildowie Associates Ltd
16/08/2022,Advertising,Cultural Services Marketing,"1,145.00",MagicWorx
05/07/2022,Advertising,Cultural Services Marketing,"1,000.00",MagicWorx
24/08/2022,Other Equipment,Arts Development,950.00,MagicWorx
12/09/2022,Arts Programme Expenses,Arts Development,800.00,Makin Projects Ltd
16/08/2022,Arts Programme Expenses,Arts Development,900.00,Making Trails
09/08/2022,Arts Programme Expenses,Arts Development,555.00,Making Trails
04/07/2022,Subscriptions,Enforcement Section,"1,198.80",Mallard Consultancy Ltd
08/09/2022,Catering Supplies,Brewhouse Cafe/Bar,541.52,Marston�s PLC
07/07/2022,Catering Supplies,Brewhouse Cafe/Bar,980.65,Marston�s PLC
16/06/2022,Catering Supplies,Brewhouse Cafe/Bar,"1,212.92",Marston�s PLC
15/07/2022,Catering Supplies,Brewhouse Cafe/Bar,645.44,Marston�s PLC
19/08/2022,Catering Supplies,Brewhouse Cafe/Bar,577.51,Marston�s PLC
12/09/2022,Arts Programme Expenses,Arts Development,"3,312.00",Maverick Security Services
25/05/2022,Training Expenses,Corporate Training,540.00,MBL Seminars Ltd
13/09/2022,Training Expenses,Corporate Training,500.00,MBL Seminars Ltd
30/08/2022,Maintenance Contracts,Brewhouse Arts Centre,553.83,Mercury Climatic Services LLP
01/09/2022,Repairs and Maintenance of Car Park Ticket Machines,Car Parks - General,"2,250.00",Metric Group Limited
01/09/2022,Repairs and Maintenance of Car Park Ticket Machines,Car Parks - General,"1,536.00",Metric Group Limited
12/09/2022,Taxi Panels,Licensing,"1,826.00",Mogo UK
26/06/2022,Temporary Staff Costs,Business Rate Collection,"1,704.01",Morgan Hunt UK Ltd
28/08/2022,Temporary Staff Costs,Business Rate Collection,"1,112.65",Morgan Hunt UK Ltd
10/07/2022,Temporary Staff Costs,Business Rate Collection,"1,643.76",Morgan Hunt UK Ltd
03/07/2022,Temporary Staff Costs,Business Rate Collection,"1,814.48",Morgan Hunt UK Ltd
17/07/2022,Temporary Staff Costs,Business Rate Collection,"1,586.72",Morgan Hunt UK Ltd
24/07/2022,Temporary Staff Costs,Business Rate Collection,"1,069.30",Morgan Hunt UK Ltd
07/08/2022,Temporary Staff Costs,Business Rate Collection,"1,069.30",Morgan Hunt UK Ltd
08/05/2022,Temporary Staff Costs,Business Rate Collection,"1,069.30",Morgan Hunt UK Ltd
26/06/2022,Temporary Staff Costs,Business Rate Collection,"1,069.30",Morgan Hunt UK Ltd
24/07/2022,Temporary Staff Costs,Business Rate Collection,"1,589.93",Morgan Hunt UK Ltd
31/07/2022,Temporary Staff Costs,Business Rate Collection,"1,610.01",Morgan Hunt UK Ltd
26/06/2022,Temporary Staff Costs,Business Rate Collection,"1,069.30",Morgan Hunt UK Ltd
18/09/2022,Temporary Staff Costs,Business Rate Collection,"1,069.30",Morgan Hunt UK Ltd
28/08/2022,Temporary Staff Costs,Business Rate Collection,"1,971.54",Morgan Hunt UK Ltd
18/09/2022,Temporary Staff Costs,Business Rate Collection,"1,660.23",Morgan Hunt UK Ltd
21/08/2022,Temporary Staff Costs,Business Rate Collection,"1,616.84",Morgan Hunt UK Ltd
14/08/2022,Temporary Staff Costs,Business Rate Collection,"1,633.71",Morgan Hunt UK Ltd
07/08/2022,Temporary Staff Costs,Business Rate Collection,"1,596.76",Morgan Hunt UK Ltd
17/07/2022,Temporary Staff Costs,Business Rate Collection,"1,069.30",Morgan Hunt UK Ltd
03/07/2022,Temporary Staff Costs,Business Rate Collection,"1,069.30",Morgan Hunt UK Ltd
31/07/2022,Temporary Staff Costs,Business Rate Collection,"1,069.30",Morgan Hunt UK Ltd
21/08/2022,Temporary Staff Costs,Business Rate Collection,"1,069.30",Morgan Hunt UK Ltd
21/08/2022,Temporary Staff Costs,Business Rate Collection,"1,069.30",Morgan Hunt UK Ltd
11/09/2022,Temporary Staff Costs,Business Rate Collection,"1,069.30",Morgan Hunt UK Ltd
29/06/2022,Consultants,Development Control,500.00,NEC Software Solutions UK Ltd
30/06/2022,Consultants,Development Control,"3,000.00",NEC Software Solutions UK Ltd
30/06/2022,Temporary Staff Costs,Housing Benefits Admin,"1,280.00",NEC Software Solutions UK Ltd
30/08/2022,Temporary Staff Costs,Housing Benefits Admin,"1,040.00",NEC Software Solutions UK Ltd
05/07/2022,Temporary Staff Costs,Housing Benefits Admin,"2,160.00",NEC Software Solutions UK Ltd
29/07/2022,Temporary Staff Costs,Housing Benefits Admin,"1,120.00",NEC Software Solutions UK Ltd
27/07/2022,Other Homeless Prevention,Housing Options,511.66,Nicholas J Humphreys Letting Agents
02/08/2022,Legal Costs,Development Control,"1,750.00",No5 Chambers Ltd
01/09/2022,Kenneling & Other Expenses,Pest Control & Animal Welfare,696.00,Noah�s Ark Environmental Services Ltd
01/08/2022,Kenneling & Other Expenses,Pest Control & Animal Welfare,"1,822.00",Noah�s Ark Environmental Services Ltd
28/07/2022,ICT Departmental Purchases,ICT,765.94,Nominet UK
06/07/2022,Car Parks Maintenance,Open Spaces,"17,523.65",Npower Commercial Gas Limited (t/a npower Business Solutions)
22/07/2022,Direct Purchases,DSO Stores Account,"32,704.35",NWF Fuels Ltd
29/07/2022,Direct Purchases,DSO Stores Account,"21,478.25",NWF Fuels Ltd
23/06/2022,Maintenance Contracts,Burton Retail Market,509.40,Otis Ltd
16/08/2022,Accommodation Costs - B & B/Hotels,Housing Options,"1,050.00",Oyster Property Services Limited
06/06/2022,Contactless Card Processing Costs,Car Parks - General,734.40,Pay 360 Limited
14/07/2022,Contactless Card Processing Costs,Car Parks - General,649.68,Pay 360 Limited
30/06/2022,Repairs and Maintenance of Car Park Ticket Machines,Car Parks - General,835.70,PayByPhone Limited
31/07/2022,Repairs and Maintenance of Car Park Ticket Machines,Car Parks - General,866.28,PayByPhone Limited
31/08/2022,Repairs and Maintenance of Car Park Ticket Machines,Car Parks - General,843.27,PayByPhone Limited
21/07/2022,Other Expenses,Brewhouse Community Ticket Sales,"3,018.00",Performing Stars Academy Limited
22/07/2022,Departmental Postages,Council Tax Collection,803.60,PHD Mail Ltd
16/09/2022,Departmental Postages,Council Tax Collection,786.96,PHD Mail Ltd
19/08/2022,Departmental Postages,Council Tax Collection,733.26,PHD Mail Ltd
24/08/2022,Maintenance Contracts,Public Conveniences,"3,021.86",PHS Group PLC
24/07/2022,Waste & Litter Disposal,Burton Retail Market,629.36,PHS Group PLC
24/07/2022,Maintenance Contracts,Facilities Management,607.55,PHS Group PLC
11/08/2022,Franking Machine Postages,Central Reprographics,"3,685.38",Pitney Bowes Finance Limited
11/07/2022,Franking Machine Postages,Central Reprographics,"4,119.36",Pitney Bowes Finance Limited
20/09/2022,Council Tax Energy Rebate Payments,Council Tax Collection,561.50,Post Office Ltd - Accounts Receivable
12/07/2022,Council Tax Energy Rebate Payments,Council Tax Collection,"1,000.00",Post Office Ltd - Accounts Receivable
16/08/2022,Council Tax Energy Rebate Payments,Council Tax Energy Rebate,"75,000.00",Post Office Ltd - Payout
12/07/2022,Search and Investigation Fees,Environmental Health,"6,076.70",Postern Leisure Ltd
09/08/2022,Repairs & Maintenance to Buildings,Facilities Management,"2,640.00",Power Continuity Systems
06/09/2022,Miscellaneous Licenses,Brewhouse Arts Centre,695.25,PPL PRS Ltd
08/08/2022,Vehicle Hire,Recycling,"4,800.00",Practical Rentals Ltd
06/07/2022,System Maintenance,ICT,"6,469.60",Precisely Europe Software & Data Ltd
24/06/2022,DFG Contractor Payments,Housing Standards,712.00,Premiere Healthcare Ltd
07/07/2022,DFG Contractor Payments,Housing Standards,660.00,Premiere Healthcare Ltd
05/09/2022,Rents,Millers Lane Depot,"6,562.50",Preston Securities Limited
21/07/2022,Enforcement Initiatives,Enforcement Section,700.00,Prince & Son
09/08/2022,Professional Theatre Fees,Brewhouse Arts Centre,"1,489.60",Prospect Music
15/07/2022,Analysts Fees,Environmental Health,"1,776.04",Public Analyst Scientific Services Limited
17/06/2022,Analysts Fees,Environmental Health,"1,141.75",Public Analyst Scientific Services Limited
22/07/2022,Franking Machine Postages,Central Reprographics,"5,000.00",Purchase Power
29/07/2022,Medical Examinations,Human Resources,660.00,Randox Laboratories t/a Randox Testing Services
29/07/2022,Training Expenses,Corporate Training,925.00,Randox Laboratories t/a Randox Testing Services
28/08/2022,Advertising,Development Control,557.52,Reach Publishing Services Ltd
03/07/2022,Advertising,Development Control,509.05,Reach Publishing Services Ltd
14/08/2022,Advertising,Development Control,727.20,Reach Publishing Services Ltd
21/08/2022,Advertising,Development Control,509.03,Reach Publishing Services Ltd
17/07/2022,Advertising,Development Control,751.44,Reach Publishing Services Ltd
10/07/2022,Advertising,Development Control,702.96,Reach Publishing Services Ltd
31/07/2022,Advertising,Housing Standards,"1,063.31",Reach Publishing Services Ltd
30/06/2022,Advertising,Housing Standards,"1,313.18",Reach Publishing Services Ltd
21/08/2022,Advertising,Housing Standards,"1,063.31",Reach Publishing Services Ltd
21/08/2022,Advertising,Housing Standards,547.99,Reach Publishing Services Ltd
31/07/2022,Advertising,Housing Standards,548.00,Reach Publishing Services Ltd
30/06/2022,Advertising,Housing Standards,"1,085.61",Reach Publishing Services Ltd
24/07/2022,Exhibitions/Events,Horticultural Resource Centre,"1,800.00",Reach Publishing Services Ltd
29/07/2022,Website Construction & Maintenance,Programmes and Transformation,"1,420.00",Recite Me Ltd
29/06/2022,Direct Purchases,Recycling,"2,876.22",Reflex Print & Design
31/08/2022,Subscriptions,Environmental Health,"1,377.00",RH Environmental Limited t/a RHE Global
22/08/2022,Consultants,Housing Benefits Admin,500.00,Richard Stanier Ltd
18/07/2022,Project Grant Payments,Development Control,"16,742.31",Richard Wakefield PTA
30/08/2022,Professional Theatre Fees,Brewhouse Arts Centre,"2,715.20",RicNic
22/07/2022,Wasps Expenditure,Councillors Community Fund,941.69,Rocester FC Juniors
11/07/2022,Franking Machine Postages,Central Reprographics,"4,320.00",Royal Mail Group Ltd
22/02/2022,Repairs & Maintenance to Buildings,Facilities Management,515.55,Saddlers Fire Protection
29/06/2022,Grounds Maintenance,Open Spaces,"1,200.00",Safeplay Surfacing Ltd
21/06/2022,Consultants,Asset Management,"2,250.00",Salloway Property Consultants
09/08/2022,Estates Surveyors Fees,Asset Management,750.00,Salloway Property Consultants
28/06/2022,Contracted Grounds Maintenance,Cemeteries,"1,600.00",SAMM Software
12/07/2022,Contracted Grounds Maintenance,Open Spaces,"2,866.00",SAMM Software
23/07/2022,Arts Programme Expenses,Arts Development,"3,890.00",Scorpion Event Solutions Ltd.
30/06/2022,Cash Collection Security Services,Car Parks - General,556.20,Security Plus + Limited
30/06/2022,Analysts Fees,Car Parks - General,"3,201.24",Security Plus + Limited
31/07/2022,Analysts Fees,Car Parks - General,"2,991.12",Security Plus + Limited
30/06/2022,Growth Point Work,New Growth Points,678.00,Sharpe Pritchard Solicitors & Parliamentary Agents
02/08/2022,Direct Purchases,DSO Stores Account,581.20,SMI INT Group Ltd
11/08/2022,Arts Programme Expenses,Arts Development,"1,130.00",Smoking Apples Theatre Limited
31/05/2022,Public Participation & Consultation,Programmes and Transformation,699.00,Snaps Surveys Ltd
14/09/2022,Website Construction & Maintenance,Programmes and Transformation,515.85,SocialSignin Ltd
14/09/2022,Advertising,Cultural Services Marketing,"1,547.55",SocialSignin Ltd
27/07/2022,Electricity,Miscellaneous Properties,"3,985.55",Southern Electric
10/08/2022,Gas,Miscellaneous Properties,649.32,Southern Electric
31/08/2022,Gas,Miscellaneous Properties,"1,657.96",Southern Electric
16/09/2022,Acquisition of Equipment,ICT,"23,251.74",Specialist Computer Centres PLC
01/09/2022,Vehicle Maintenance Costs,Recycling,"2,018.00",Specialist Fleet Services Ltd
01/07/2022,Vehicle Maintenance Costs,Recycling,"2,017.00",Specialist Fleet Services Ltd
01/09/2022,Vehicle Maintenance Costs,Recycling,"1,836.00",Specialist Fleet Services Ltd
01/09/2022,Vehicle Maintenance Costs,Recycling,"2,018.00",Specialist Fleet Services Ltd
01/09/2022,Vehicle Maintenance Costs,Recycling,"1,836.00",Specialist Fleet Services Ltd
01/07/2022,Vehicle Maintenance Costs,Recycling,"2,017.00",Specialist Fleet Services Ltd
01/07/2022,Vehicle Maintenance Costs,Recycling,"1,836.00",Specialist Fleet Services Ltd
01/08/2022,Vehicle Maintenance Costs,Recycling,"2,017.00",Specialist Fleet Services Ltd
01/08/2022,Vehicle Maintenance Costs,Recycling,"2,017.00",Specialist Fleet Services Ltd
01/08/2022,Vehicle Maintenance Costs,Recycling,"1,836.00",Specialist Fleet Services Ltd
22/08/2022,Vehicle Maintenance Costs,Recycling,"2,385.17",Specialist Fleet Services Ltd
01/07/2022,Vehicle Maintenance Costs,Recycling,"1,836.00",Specialist Fleet Services Ltd
01/08/2022,Vehicle Maintenance Costs,Recycling,"2,017.00",Specialist Fleet Services Ltd
01/09/2022,Vehicle Maintenance Costs,Recycling,"1,802.00",Specialist Fleet Services Ltd
01/07/2022,Vehicle Maintenance Costs,Recycling,"1,836.00",Specialist Fleet Services Ltd
01/07/2022,Vehicle Maintenance Costs,Recycling,"1,802.00",Specialist Fleet Services Ltd
13/06/2022,Vehicle Maintenance Costs,Recycling,"1,054.34",Specialist Fleet Services Ltd
01/09/2022,Vehicle Maintenance Costs,Recycling,"1,836.00",Specialist Fleet Services Ltd
01/07/2022,Vehicle Maintenance Costs,Recycling,"2,017.00",Specialist Fleet Services Ltd
12/07/2022,Vehicle Maintenance Costs,Recycling,836.55,Specialist Fleet Services Ltd
01/08/2022,Vehicle Maintenance Costs,Recycling,"2,017.00",Specialist Fleet Services Ltd
01/08/2022,Vehicle Maintenance Costs,Recycling,"1,836.00",Specialist Fleet Services Ltd
01/08/2022,Vehicle Maintenance Costs,Recycling,"1,802.00",Specialist Fleet Services Ltd
22/08/2022,Vehicle Maintenance Costs,Recycling,636.19,Specialist Fleet Services Ltd
01/07/2022,Vehicle Maintenance Costs,Recycling,"1,836.00",Specialist Fleet Services Ltd
01/08/2022,Vehicle Maintenance Costs,Recycling,"2,017.00",Specialist Fleet Services Ltd
01/09/2022,Vehicle Maintenance Costs,Recycling,"2,017.00",Specialist Fleet Services Ltd
01/07/2022,Vehicle Maintenance Costs,Recycling,"2,017.00",Specialist Fleet Services Ltd
01/09/2022,Vehicle Maintenance Costs,Recycling,"2,017.00",Specialist Fleet Services Ltd
01/09/2022,Vehicle Maintenance Costs,Recycling,"2,017.00",Specialist Fleet Services Ltd
01/07/2022,Vehicle Maintenance Costs,Recycling,"2,017.00",Specialist Fleet Services Ltd
01/09/2022,Vehicle Maintenance Costs,Recycling,"1,836.00",Specialist Fleet Services Ltd
01/08/2022,Vehicle Maintenance Costs,Recycling,"1,836.00",Specialist Fleet Services Ltd
01/08/2022,Vehicle Maintenance Costs,Recycling,"1,836.00",Specialist Fleet Services Ltd
22/08/2022,Vehicle Hire,Recycling,"12,760.00",Specialist Fleet Services Ltd
22/08/2022,Vehicle Maintenance Costs,Refuse Collection,933.02,Specialist Fleet Services Ltd
01/09/2022,Vehicle Maintenance Costs,Refuse Collection,"1,836.00",Specialist Fleet Services Ltd
01/09/2022,Vehicle Maintenance Costs,Refuse Collection,"1,836.00",Specialist Fleet Services Ltd
01/08/2022,Vehicle Maintenance Costs,Refuse Collection,"2,017.00",Specialist Fleet Services Ltd
01/07/2022,Vehicle Maintenance Costs,Refuse Collection,"1,836.00",Specialist Fleet Services Ltd
01/07/2022,Vehicle Maintenance Costs,Refuse Collection,"2,017.00",Specialist Fleet Services Ltd
01/09/2022,Vehicle Maintenance Costs,Refuse Collection,"2,017.00",Specialist Fleet Services Ltd
01/08/2022,Vehicle Maintenance Costs,Refuse Collection,"1,836.00",Specialist Fleet Services Ltd
01/08/2022,Vehicle Maintenance Costs,Refuse Collection,"1,836.00",Specialist Fleet Services Ltd
01/08/2022,Vehicle Maintenance Costs,Refuse Collection,"1,836.00",Specialist Fleet Services Ltd
01/09/2022,Vehicle Maintenance Costs,Refuse Collection,"1,836.00",Specialist Fleet Services Ltd
01/09/2022,Vehicle Maintenance Costs,Refuse Collection,"1,836.00",Specialist Fleet Services Ltd
01/08/2022,Vehicle Maintenance Costs,Refuse Collection,"1,836.00",Specialist Fleet Services Ltd
01/07/2022,Vehicle Maintenance Costs,Refuse Collection,"1,836.00",Specialist Fleet Services Ltd
01/07/2022,Vehicle Maintenance Costs,Refuse Collection,"1,836.00",Specialist Fleet Services Ltd
01/07/2022,Vehicle Maintenance Costs,Refuse Collection,"1,836.00",Specialist Fleet Services Ltd
22/08/2022,Vehicle Hire,Refuse Collection,"1,980.00",Specialist Fleet Services Ltd
01/09/2022,Vehicle Maintenance Costs,Street Cleaning,"1,278.00",Specialist Fleet Services Ltd
01/08/2022,Vehicle Maintenance Costs,Street Cleaning,"1,403.00",Specialist Fleet Services Ltd
01/09/2022,Vehicle Maintenance Costs,Street Cleaning,"1,278.00",Specialist Fleet Services Ltd
01/08/2022,Vehicle Maintenance Costs,Street Cleaning,"4,209.00",Specialist Fleet Services Ltd
01/07/2022,Vehicle Maintenance Costs,Street Cleaning,"1,403.00",Specialist Fleet Services Ltd
13/06/2022,Vehicle Maintenance Costs,Street Cleaning,599.70,Specialist Fleet Services Ltd
01/08/2022,Vehicle Maintenance Costs,Street Cleaning,"1,278.00",Specialist Fleet Services Ltd
01/08/2022,Vehicle Maintenance Costs,Street Cleaning,"1,278.00",Specialist Fleet Services Ltd
01/07/2022,Vehicle Maintenance Costs,Street Cleaning,"1,278.00",Specialist Fleet Services Ltd
01/07/2022,Vehicle Maintenance Costs,Street Cleaning,"1,278.00",Specialist Fleet Services Ltd
01/09/2022,Vehicle Maintenance Costs,Street Cleaning,"1,278.00",Specialist Fleet Services Ltd
01/07/2022,Vehicle Maintenance Costs,Street Cleaning,"1,278.00",Specialist Fleet Services Ltd
01/09/2022,Vehicle Maintenance Costs,Street Cleaning,"1,278.00",Specialist Fleet Services Ltd
01/08/2022,Vehicle Maintenance Costs,Street Cleaning,"1,278.00",Specialist Fleet Services Ltd
01/08/2022,Vehicle Maintenance Costs,Street Cleaning,"1,278.00",Specialist Fleet Services Ltd
01/07/2022,Vehicle Maintenance Costs,Street Cleaning,"1,278.00",Specialist Fleet Services Ltd
01/09/2022,Vehicle Maintenance Costs,Street Cleaning,"1,401.00",Specialist Fleet Services Ltd
01/09/2022,Vehicle Maintenance Costs,Street Cleaning,"1,403.00",Specialist Fleet Services Ltd
01/09/2022,Vehicle Maintenance Costs,Trade Waste Recycling,"1,836.00",Specialist Fleet Services Ltd
01/08/2022,Vehicle Maintenance Costs,Trade Waste Recycling,"1,836.00",Specialist Fleet Services Ltd
01/07/2022,Vehicle Maintenance Costs,Trade Waste Recycling,"1,836.00",Specialist Fleet Services Ltd
18/07/2022,Parking Charges Income,High Steet Car Park,"32,491.85",Sports & Leisure Management Ltd
18/07/2022,Parking Charges Income,Uttoxeter Leisure Centre Car Park,"10,219.38",Sports & Leisure Management Ltd
30/08/2022,Repairs & Maintenance to Buildings,Leisure Management,"10,766.54",Sports & Leisure Management Ltd
30/08/2022,Sports Equipment,Leisure Management,"14,168.00",Sports & Leisure Management Ltd
17/08/2022,Third Party Payments,Leisure Management,"10,543.00",Sports & Leisure Management Ltd
15/07/2022,Third Party Payments,Leisure Management,"10,543.00",Sports & Leisure Management Ltd
20/09/2022,Third Party Payments,Leisure Management,"10,543.00",Sports & Leisure Management Ltd
08/07/2022,Contributions to Other Bodies,Environmental Health,"5,000.00",Staffordshire County Council
13/09/2022,Superannuation Payments,Pension Payments,"190,000.00",Staffordshire County Council
07/09/2022,Contributions to Other Bodies,Uttoxeter Masterplan,"17,500.00",Staffordshire County Council
30/06/2022,Consultants,Legal Services,655.50,Staffordshire County Council
03/08/2022,Consultants,Pension Payments,"1,470.00",Staffordshire County Pension Fund
03/08/2022,Consultants,Pension Payments,995.00,Staffordshire County Pension Fund
03/08/2022,Consultants,Pension Payments,"1,160.00",Staffordshire County Pension Fund
07/07/2022,Contributions to Other Bodies,Planning Policy,"2,000.00",Staffordshire Wildlife Trust
30/05/2022,Third Party Payments,Recycling,"19,451.78",Suez Recycling & Recovery UK Ltd
21/06/2022,Third Party Payments,Recycling,"4,767.80",Suez Recycling & Recovery UK Ltd
15/08/2022,Miscellaneous Licenses,Car Parks - General,"4,262.08",Taranto Systems Limited
13/06/2022,Arts Programme Expenses,Arts Development,"1,200.00",Tardis Environmental UK Ltd
20/07/2022,Grounds Maintenance,Open Spaces,530.00,TCM Limited
21/07/2022,Consultants,Development Control,877.50,The Borough of Telford & Wrekin
22/07/2022,General Grants,Enterprise,"5,574.00",The Dial Restaurant and Bar
23/06/2022,General Grants,Enterprise,"4,426.00",The Dial Restaurant and Bar
12/09/2022,Rents,Burton Place Car Park,"5,617.89",The Hollins Murray Group Limited
24/09/2022,Other Expenses,Brewhouse Community Ticket Sales,"8,429.00",The Mellow Dramatics
25/07/2022,Contributions to Other Bodies,Enterprise,"9,000.00",The National Forest Company
21/09/2022,Temporary Staff Costs,Licensing,"1,104.00",The Oyster Partnership Ltd
17/08/2022,Temporary Staff Costs,Licensing,"1,177.60",The Oyster Partnership Ltd
31/08/2022,Temporary Staff Costs,Licensing,736.00,The Oyster Partnership Ltd
10/08/2022,Temporary Staff Costs,Licensing,660.16,The Oyster Partnership Ltd
07/09/2022,Temporary Staff Costs,Licensing,730.56,The Oyster Partnership Ltd
24/08/2022,Temporary Staff Costs,Licensing,"1,199.04",The Oyster Partnership Ltd
14/09/2022,Temporary Staff Costs,Licensing,960.00,The Oyster Partnership Ltd
24/08/2022,Temporary Staff Costs,Business Rate Collection,901.44,The Oyster Partnership Ltd
14/09/2022,Temporary Staff Costs,Business Rate Collection,845.44,The Oyster Partnership Ltd
21/09/2022,Temporary Staff Costs,Business Rate Collection,"1,117.44",The Oyster Partnership Ltd
31/08/2022,Temporary Staff Costs,Business Rate Collection,"1,045.44",The Oyster Partnership Ltd
14/09/2022,Temporary Staff Costs,Business Rate Collection,"1,439.61",The Oyster Partnership Ltd
21/09/2022,Temporary Staff Costs,Council Tax Collection,"1,493.19",The Oyster Partnership Ltd
21/09/2022,Temporary Staff Costs,Council Tax Collection,872.00,The Oyster Partnership Ltd
08/09/2022,Contributions to Other Bodies,Tourism Development,"3,260.00",The Research Solution
12/09/2022,General Grants,Enterprise,"1,740.00",The Sweat Bank
01/08/2022,Market Research,Enterprise,"32,668.75",The Thinking Place
21/06/2022,General Grants,Health & Leisure Grants,"2,500.00",Together Active
14/08/2022,Electricity,Brewhouse Arts Centre,671.37,Total Gas & Power
11/09/2022,Electricity,Brewhouse Arts Centre,557.42,Total Gas & Power
10/07/2022,Electricity,Brewhouse Arts Centre,568.04,Total Gas & Power
14/08/2022,Electricity,Burton Retail Market,"1,215.12",Total Gas & Power
11/09/2022,Electricity,Burton Retail Market,"1,373.50",Total Gas & Power
10/07/2022,Electricity,Burton Retail Market,"1,233.00",Total Gas & Power
11/09/2022,Electricity,Facilities Management,"2,033.25",Total Gas & Power
14/08/2022,Electricity,Facilities Management,"2,292.15",Total Gas & Power
10/07/2022,Electricity,Facilities Management,"2,100.14",Total Gas & Power
31/08/2022,Other Equipment,Closed Circuit Cameras,"6,558.21",Total Integrated Solutions Ltd
01/09/2022,Maintenance Agreements,Closed Circuit Cameras,770.00,Total Integrated Solutions Ltd
29/06/2022,Maintenance Agreements,Closed Circuit Cameras,"1,334.58",Total Integrated Solutions Ltd
02/08/2022,Accommodation Costs - B & B/Hotels,Housing Options - Accommodation,810.00,TQ Hotels Ltd
02/07/2022,Accommodation Costs - B & B/Hotels,Housing Options - Accommodation,"1,350.00",TQ Hotels Ltd
02/07/2022,Accommodation Costs - B & B/Hotels,Housing Options - Accommodation,"1,350.00",TQ Hotels Ltd
02/07/2022,Accommodation Costs - B & B/Hotels,Housing Options - Accommodation,765.00,TQ Hotels Ltd
03/08/2022,Accommodation Costs - B & B/Hotels,Housing Options - Accommodation,"1,395.00",TQ Hotels Ltd
02/08/2022,Accommodation Costs - B & B/Hotels,Housing Options - Accommodation,"1,395.00",TQ Hotels Ltd
02/07/2022,Accommodation Costs - B & B/Hotels,Housing Options - Accommodation,"1,350.00",TQ Hotels Ltd
02/07/2022,Accommodation Costs - B & B/Hotels,Housing Options - Accommodation,765.00,TQ Hotels Ltd
02/08/2022,Accommodation Costs - B & B/Hotels,Housing Options - Accommodation,"1,395.00",TQ Hotels Ltd
02/07/2022,Accommodation Costs - B & B/Hotels,Housing Options - Accommodation,945.00,TQ Hotels Ltd
02/07/2022,Accommodation Costs - B & B/Hotels,Housing Options - Accommodation,765.00,TQ Hotels Ltd
01/09/2022,Accommodation Costs - B & B/Hotels,Housing Options - Accommodation,"1,395.00",TQ Hotels Ltd
01/09/2022,Accommodation Costs - B & B/Hotels,Housing Options - Accommodation,990.00,TQ Hotels Ltd
01/09/2022,Accommodation Costs - B & B/Hotels,Housing Options - Accommodation,"1,395.00",TQ Hotels Ltd
01/09/2022,Accommodation Costs - B & B/Hotels,Housing Options - Accommodation,"1,170.00",TQ Hotels Ltd
02/07/2022,Accommodation Costs - B & B/Hotels,Housing Options - Accommodation,"1,350.00",TQ Hotels Ltd
02/07/2022,Accommodation Costs - B & B/Hotels,Housing Options - Accommodation,"1,350.00",TQ Hotels Ltd
02/08/2022,Accommodation Costs - B & B/Hotels,Housing Options - Accommodation,"1,395.00",TQ Hotels Ltd
02/07/2022,Accommodation Costs - B & B/Hotels,Housing Options - Accommodation,"1,350.00",TQ Hotels Ltd
03/08/2022,Accommodation Costs - B & B/Hotels,Housing Options - Accommodation,"1,395.00",TQ Hotels Ltd
03/08/2022,Accommodation Costs - B & B/Hotels,Housing Options - Accommodation,"1,395.00",TQ Hotels Ltd
02/07/2022,Accommodation Costs - B & B/Hotels,Housing Options - Accommodation,630.00,TQ Hotels Ltd
03/08/2022,Accommodation Costs - B & B/Hotels,Housing Options - Accommodation,810.00,TQ Hotels Ltd
02/07/2022,Accommodation Costs - B & B/Hotels,Housing Options - Accommodation,"1,350.00",TQ Hotels Ltd
03/08/2022,Accommodation Costs - B & B/Hotels,Housing Options - Accommodation,540.00,TQ Hotels Ltd
01/09/2022,Accommodation Costs - B & B/Hotels,Next Steps Accommodation Programme (NSAP),"1,395.00",TQ Hotels Ltd
01/09/2022,Accommodation Costs - B & B/Hotels,Next Steps Accommodation Programme (NSAP),540.00,TQ Hotels Ltd
01/09/2022,Accommodation Costs - B & B/Hotels,Next Steps Accommodation Programme (NSAP),540.00,TQ Hotels Ltd
03/08/2022,Accommodation Costs - B & B/Hotels,Next Steps Accommodation Programme (NSAP),810.00,TQ Hotels Ltd
02/08/2022,Accommodation Costs - B & B/Hotels,Next Steps Accommodation Programme (NSAP),990.00,TQ Hotels Ltd
02/08/2022,Accommodation Costs - B & B/Hotels,Next Steps Accommodation Programme (NSAP),"1,080.00",TQ Hotels Ltd
01/09/2022,Accommodation Costs - B & B/Hotels,Next Steps Accommodation Programme (NSAP),"1,260.00",TQ Hotels Ltd
01/09/2022,Accommodation Costs - B & B/Hotels,Next Steps Accommodation Programme (NSAP),810.00,TQ Hotels Ltd
01/06/2022,Accommodation Costs - B & B/Hotels,Next Steps Accommodation Programme (NSAP),"1,395.00",TQ Hotels Ltd
02/08/2022,Accommodation Costs - B & B/Hotels,Next Steps Accommodation Programme (NSAP),630.00,TQ Hotels Ltd
02/07/2022,Accommodation Costs - B & B/Hotels,Next Steps Accommodation Programme (NSAP),810.00,TQ Hotels Ltd
01/09/2022,Accommodation Costs - B & B/Hotels,Next Steps Accommodation Programme (NSAP),540.00,TQ Hotels Ltd
02/07/2022,Accommodation Costs - B & B/Hotels,Next Steps Accommodation Programme (NSAP),"1,350.00",TQ Hotels Ltd
02/08/2022,Accommodation Costs - B & B/Hotels,Next Steps Accommodation Programme (NSAP),"1,395.00",TQ Hotels Ltd
23/06/2022,General Grants,Housing Options,"12,000.00",Trent & Dove Housing
18/07/2022,General Grants,Housing Options,"12,000.00",Trent & Dove Housing
17/06/2022,Lettings Service,Housing Options,"20,000.00",Trent & Dove Housing
18/07/2022,Rents,Housing Options - Accommodation,"1,082.04",Trent & Dove Housing
21/09/2022,Rents,Housing Options - Accommodation,"1,226.03",Trent & Dove Housing
15/06/2022,Rents,Housing Options - Accommodation,"1,082.04",Trent & Dove Housing
18/07/2022,Rents,Housing Options - Accommodation,"2,575.00",Trent & Dove Housing
20/06/2022,Rents,Housing Options - Accommodation,"1,226.03",Trent & Dove Housing
19/08/2022,Rents,Housing Options - Accommodation,"1,274.00",Trent & Dove Housing
28/07/2022,Project Grant Payments,Development Control,"15,934.00",Tutbury Old School Association
29/06/2022,Analysts Fees,Environmental Health,"1,309.86",United Utilities Water Ltd
02/09/2022,Training Expenses,Corporate Training,"4,000.00",University of the West of England (UWE Bristol)
13/07/2022,Temporary Staff Costs,Legal Services,"1,936.96",Venn Group Limited
15/06/2022,Temporary Staff Costs,Legal Services,"1,936.96",Venn Group Limited
29/06/2022,Temporary Staff Costs,Legal Services,"1,936.96",Venn Group Limited
08/06/2022,Temporary Staff Costs,Legal Services,"1,936.96",Venn Group Limited
13/07/2022,Temporary Staff Costs,Legal Services,"1,936.96",Venn Group Limited
24/08/2022,Temporary Staff Costs,Legal Services,"2,905.44",Venn Group Limited
27/07/2022,Temporary Staff Costs,Legal Services,"1,936.96",Venn Group Limited
07/09/2022,Temporary Staff Costs,Legal Services,"2,481.73",Venn Group Limited
06/07/2022,Temporary Staff Costs,Legal Services,"1,936.96",Venn Group Limited
22/06/2022,Temporary Staff Costs,Legal Services,"1,936.96",Venn Group Limited
17/08/2022,Temporary Staff Costs,Legal Services,"1,936.96",Venn Group Limited
10/08/2022,Temporary Staff Costs,Legal Services,"1,936.96",Venn Group Limited
03/08/2022,Temporary Staff Costs,Legal Services,"1,936.96",Venn Group Limited
14/09/2022,Temporary Staff Costs,Legal Services,"2,360.67",Venn Group Limited
21/09/2022,Temporary Staff Costs,Legal Services,"2,239.61",Venn Group Limited
17/08/2022,Temporary Staff Costs,Planning Policy,"1,739.00",Vivid Resourcing
20/07/2022,Temporary Staff Costs,Planning Policy,752.00,Vivid Resourcing
13/07/2022,Temporary Staff Costs,Planning Policy,"1,645.00",Vivid Resourcing
27/07/2022,Temporary Staff Costs,Planning Policy,"1,598.00",Vivid Resourcing
03/08/2022,Temporary Staff Costs,Planning Policy,"1,739.00",Vivid Resourcing
07/09/2022,Temporary Staff Costs,Planning Policy,"1,645.00",Vivid Resourcing
21/09/2022,Temporary Staff Costs,Planning Policy,"1,739.00",Vivid Resourcing
14/09/2022,Temporary Staff Costs,Planning Policy,"1,739.00",Vivid Resourcing
31/08/2022,Temporary Staff Costs,Planning Policy,"1,739.00",Vivid Resourcing
24/08/2022,Temporary Staff Costs,Planning Policy,"1,739.00",Vivid Resourcing
29/06/2022,Temporary Staff Costs,Development Control,"1,739.00",Vivid Resourcing
27/07/2022,Temporary Staff Costs,Development Control,916.85,Vivid Resourcing
03/08/2022,Temporary Staff Costs,Development Control,923.15,Vivid Resourcing
14/09/2022,Temporary Staff Costs,Development Control,977.75,Vivid Resourcing
07/09/2022,Temporary Staff Costs,Development Control,853.80,Vivid Resourcing
31/08/2022,Temporary Staff Costs,Development Control,"1,017.95",Vivid Resourcing
06/07/2022,Temporary Staff Costs,Development Control,"1,049.70",Vivid Resourcing
20/07/2022,Temporary Staff Costs,Development Control,867.65,Vivid Resourcing
17/08/2022,Temporary Staff Costs,Development Control,884.20,Vivid Resourcing
10/08/2022,Temporary Staff Costs,Development Control,924.95,Vivid Resourcing
29/06/2022,Temporary Staff Costs,Development Control,689.05,Vivid Resourcing
06/07/2022,Temporary Staff Costs,Development Control,"1,739.00",Vivid Resourcing
14/09/2022,Mobile Telephones,ICT,650.55,Vodafone Limited
16/08/2022,Mobile Telephones,ICT,655.10,Vodafone Limited
16/07/2022,Mobile Telephones,ICT,655.22,Vodafone Limited
15/06/2022,Mobile Telephones,ICT,649.18,Vodafone Limited
13/08/2022,Telephones,Switchboard and Reception,"1,190.29",Vodafone t/a Cable & Wireless UK
13/07/2022,Telephones,Switchboard and Reception,"1,255.58",Vodafone t/a Cable & Wireless UK
13/09/2022,Telephones,Switchboard and Reception,"1,226.51",Vodafone t/a Cable & Wireless UK
01/04/2022,IT Links to Remote Sites,ICT,933.40,Vodafone t/a Cable & Wireless UK
01/07/2022,IT Links to Remote Sites,ICT,933.40,Vodafone t/a Cable & Wireless UK
11/08/2022,Water Services,Public Conveniences,536.52,Water Plus Ltd
21/07/2022,Water Services,Facilities Management,"2,573.25",Water Plus Ltd
05/09/2022,Direct Purchases,DSO Stores Account,"41,961.98",Watson Petroleum Ltd
08/07/2022,Website Construction & Maintenance,Programmes and Transformation,"1,100.00",Webcurl Ltd
26/05/2022,DFG Contractor Payments,Housing Standards,"14,884.00",Wessex Lift Co Ltd
30/04/2022,Subscriptions,Committee Support,"3,360.00",West Midlands Employers
29/07/2022,Advertising,Cultural Services Marketing,500.00,What�s On Magazine Ltd
30/08/2022,Hire of Equipment,Brewhouse Arts Centre,787.75,Willowbrook Technical Services Ltd
06/07/2022,Third Party Payments,Recycling,"7,904.05",Willshee�s Waste & Recycling Ltd
31/05/2022,Third Party Payments,Recycling,"2,565.15",Willshee�s Waste & Recycling Ltd
30/06/2022,Third Party Payments,Recycling,"7,057.82",Willshee�s Waste & Recycling Ltd
31/08/2022,Third Party Payments,Recycling,"8,305.50",Willshee�s Waste & Recycling Ltd
31/08/2022,Third Party Payments,Recycling,"7,615.11",Willshee�s Waste & Recycling Ltd
14/09/2022,Third Party Payments,Recycling,"1,691.20",Willshee�s Waste & Recycling Ltd
31/07/2022,Third Party Payments,Recycling,"9,043.30",Willshee�s Waste & Recycling Ltd
31/07/2022,Third Party Payments,Recycling,"7,089.89",Willshee�s Waste & Recycling Ltd
30/06/2022,Vehicle Hire,Street Cleaning,548.80,Willshee�s Waste & Recycling Ltd
31/07/2022,Vehicle Hire,Street Cleaning,548.80,Willshee�s Waste & Recycling Ltd
31/07/2022,Vehicle Hire,Street Cleaning,"1,108.80",Willshee�s Waste & Recycling Ltd
31/08/2022,Vehicle Hire,Street Cleaning,823.20,Willshee�s Waste & Recycling Ltd
02/07/2022,Vehicle Hire,Street Cleaning,"1,108.80",Willshee�s Waste & Recycling Ltd
31/08/2022,Vehicle Hire,Street Cleaning,"1,310.40",Willshee�s Waste & Recycling Ltd
05/08/2022,Wasps Expenditure,Councillors Community Fund,590.17,Winshill Football Club
31/08/2022,Software Licenses & Contracts,Licensing,587.58,WorldPay Ltd
31/07/2022,Credit Card Payments,Licensing,617.13,WorldPay Ltd
30/06/2022,Credit Card Payments,Licensing,621.23,WorldPay Ltd
22/07/2022,Litter Bins,Street Cleaning,"4,169.94",Wybone Ltd
28/03/2022,Grounds Maintenance,Cemeteries,"1,898.05",Yoxall Parish Council
